fUST/lending_fUST_20251014
["ID","MTS","AMOUNT","RATE_DAILY","PERIOD"]
[391188262,1760412641035,-250.0,0.00025314,2]
[391188263,1760412641044,-250.0,0.00025314,2]
[391188264,1760412641053,-260.07756688,0.00025314,2]
[391188265,1760412641062,-260.0,0.00025667,2]
[391188266,1760412641071,-500.0,0.000258,2]
[391188267,1760412641081,-500.0,0.000258,2]
[391188268,1760412641090,-501.06605075,0.000258,2]
[391188269,1760412641100,-505.48122756,0.000258,2]
[391188270,1760412641110,-500.0,0.000258,2]
[391188271,1760412641119,-500.0,0.000258,2]
[391188272,1760412641129,-167.80282393,0.00025862,2]
[391188273,1760412641138,-19292.2273969,0.00025862,2]
[391188274,1760412641147,-168.3888056,0.00025862,2]
[391188275,1760412641156,-513.11886281,0.00025889,2]
[391188276,1760412641166,-509.5923444,0.00025889,2]
[391188277,1760412641175,-500.0,0.00025889,2]
[391188278,1760412641185,-500.0,0.00025944,2]
[391188279,1760412641195,-837.31433615,0.00026017,2]
[391188280,1760412641205,-8491.44,0.00026027,2]
[391188281,1760412641214,-1241.11,0.00026196,2]
[391188282,1760412641224,-52849.66,0.000262,7]
[391188283,1760412641234,-823.0,0.00026262,2]
[391188284,1760412641244,-151.0,0.000263,14]
[391188285,1760412641254,-1000.0,0.00026348,2]
[391188286,1760412641263,-1000.0,0.00026348,2]
[391188287,1760412641272,-596.07510529,0.00026348,2]
[391188288,1760412641282,-20006.03981059,0.0002641,2]
[391188289,1760412641291,-320.23838143,0.0002641,2]
[391188290,1760412641301,-1000.0,0.00026437,2]
[391188291,1760412641310,-1000.0,0.00026492,2]
[391188292,1760412641320,-1166.953545,0.00026676,2]
[391188293,1760412641330,-180.62727801,0.00026683,2]
[391188294,1760412641340,-837.31433615,0.0002689,2]
[391188295,1760412641349,-940.50785904,0.00026896,2]
[391188296,1760412641358,-1500.0,0.00026896,2]
[391188297,1760412641368,-20746.26328358,0.00026958,2]
[391188298,1760412641377,-1447.96,0.00027204,2]
[391188299,1760412641386,-151.0,0.000273,20]
[391188300,1760412641395,-500.0,0.00027396,4]
[391188301,1760412641405,-501.35374469,0.00027396,4]
[391188302,1760412641414,-500.71369986,0.00027396,4]
[391188303,1760412641424,-505.74786077,0.00027396,4]
[391188304,1760412641433,-500.0,0.00027396,4]
[391188305,1760412641443,-500.0,0.00027396,4]
[391188306,1760412641452,-502.37268043,0.00027396,4]
[391188307,1760412641461,-500.0,0.00027396,4]
[391188308,1760412641471,-500.0,0.00027396,4]
[391188309,1760412641480,-500.0,0.00027396,4]
[391188310,1760412641490,-500.0,0.00027396,4]
[391188311,1760412641499,-500.0,0.00027396,4]
[391188312,1760412641508,-500.0,0.00027396,4]
[391188313,1760412641518,-500.0,0.00027396,4]
[391188314,1760412641527,-504.22006794,0.00027396,4]
[391188315,1760412641536,-500.0,0.00027396,4]
[391188316,1760412641546,-500.0,0.00027396,4]
[391188317,1760412641555,-500.0,0.00027396,4]
[391188318,1760412641564,-500.0,0.00027396,4]
[391188319,1760412641573,-500.0,0.00027396,4]
[391188320,1760412641584,-503.97546992,0.00027396,4]
[391188321,1760412641594,-500.0,0.00027396,4]
[391188322,1760412641603,-500.0,0.00027396,4]
[391188323,1760412641612,-500.0,0.00027396,4]
[391188324,1760412641622,-501.29214937,0.00027396,4]
[391188325,1760412641631,-500.0,0.00027396,4]
[391188326,1760412641640,-502.12855619,0.00027396,4]
[391188327,1760412641650,-161.19101485,0.00027397,20]
[391188328,1760412641660,-8491.44,0.00027397,4]
[391188329,1760412641670,-3644.0,0.000274,2]
[391188330,1760412641679,-2000.0,0.00027444,5]
[391188331,1760412641689,-21513.87502507,0.00027506,2]
[391188332,1760412641698,-1000.0,0.00027646,30]
[391188333,1760412641708,-1088.0,0.00027719,2]
[391188334,1760412641718,-325.31446834,0.00027743,2]
[391188335,1760412641727,-981.0,0.0002781,2]
[391188336,1760412641736,-2161.0,0.0002781,2]
[391188337,1760412641746,-629.457,0.0002781,2]
[391188338,1760412641755,-411.0,0.0002781,2]
[391188339,1760412641765,-418.168,0.0002781,2]
[391188340,1760412641775,-500.0,0.00027992,5]
[391188341,1760412641784,-2473.25766201,0.00028,60]
[391188342,1760412641794,-1087.0,0.00028002,2]
[391188343,1760412641803,-837.31433615,0.00028116,2]
[391188344,1760412641812,-1088.0,0.00028126,7]
[391188345,1760412641822,-4199.0,0.00028133,2]
[391188346,1760412641831,-1654.81,0.00028211,2]
[391188347,1760412641841,-151.0,0.000283,10]
[391188348,1760412641850,-1087.0,0.00028405,7]
[391188349,1760412641859,-52849.66,0.000285,7]
[391188350,1760412641874,-1152.0,0.00028586,2]
[391188351,1760412641883,-177.0,0.00028658,30]
[391188352,1760412641894,-521.37491996,0.0002876,2]
[391188353,1760412641904,-8491.44,0.00028767,6]
[391188354,1760412641913,-339.0,0.00028769,2]
[391188355,1760412641922,-149136.66166159,0.000288,30]
[391188356,1760412641932,-2000.0,0.00029,2]
[391188357,1760412641943,-200.25802931,0.00029,120]
[391188358,1760412641952,-500.933,0.00029065,2]
[391188359,1760412641962,-2203.936,0.00029065,2]
[391188360,1760412641970,-3644.0,0.000291,2]
[391188361,1760412641980,-700.0,0.00029141,7]
[391188362,1760412641989,-1000.0,0.00029155,5]
[391188363,1760412641998,-1861.66,0.00029219,2]
[391188364,1760412642009,-339.0,0.0002926,2]
[391188365,1760412642017,-5033.04979759,0.000293,19]
[391188366,1760412642026,-5000.0,0.000293,25]
[391188367,1760412642035,-151.0,0.000293,18]
[391188368,1760412642045,-423.581097,0.00029349,2]
[391188369,1760412642054,-1227.2907599,0.00029366,2]
[391188370,1760412642063,-1532.38206024,0.00029432,2]
[391188371,1760412642072,-70349.9642,0.00029444,2]
[391188372,1760412642083,-236.4709199,0.00029473,2]
[391188373,1760412642092,-504.85521143,0.00029473,5]
[391188374,1760412642101,-500.0,0.00029473,5]
[391188375,1760412642110,-189.91203259,0.00029473,5]
[391188376,1760412642119,-600148.40961616,0.00029488,2]
[391188377,1760412642128,-339.0,0.00029497,2]
[391188378,1760412642139,-600.0,0.00029548,2]
[391188379,1760412642152,-95000.0,0.0002956,2]
[391188380,1760412642162,-133031.44237345,0.00029601,4]
[391188381,1760412642172,-339.0,0.00029627,2]
[391188382,1760412642183,-1227.2907599,0.00029759,2]
[391188383,1760412642192,-339.0,0.00029769,7]
[391188384,1760412642202,-600.0,0.00029856,2]
[391188385,1760412642211,-500.0,0.0002986,5]
[391188386,1760412642220,-700.0,0.00029963,7]
[391188387,1760412642230,-800.0,0.00029974,2]
[391188388,1760412642239,-800.0,0.00029983,2]
[391188389,1760412642248,-1103.0,0.0003,7]
[391188390,1760412642257,-790.35504747,0.0003,2]
[391188391,1760412642267,-7284.07544672,0.0003,2]
[391188392,1760412642276,-301.41338794,0.0003,120]
[391188393,1760412642286,-7114.23578319,0.0003,30]
[391188394,1760412642294,-646153.31480553,0.0003,9]
[391188395,1760412642364,-1082939.09195249,0.0003,9]
[391188396,1760412642374,-525.10596981,0.0003,2]
[391188397,1760412642383,-188.114,0.0003,2]
[391188398,1760412642392,-1000.0,0.0003,4]
[391188399,1760412642401,-152.529517,0.0003,30]
[391188400,1760412642410,-151.0,0.0003,30]
[391188401,1760412642420,-151.0,0.0003,30]
[391188402,1760412642429,-151.03972356,0.0003,30]
[391188403,1760412642438,-151.0,0.0003,30]
[391188404,1760412642448,-151.0,0.0003,30]
[391188405,1760412642457,-151.0,0.0003,30]
[391188406,1760412642465,-800.0,0.00030002,2]
[391188407,1760412642475,-1227.29076,0.00030008,2]
[391188408,1760412642484,-400.0,0.00030018,2]
[391188409,1760412642493,-1000.0,0.00030021,5]
[391188410,1760412642503,-339.0,0.0003004,2]
[391188411,1760412642512,-500.0,0.0003006,5]
[391188412,1760412642521,-800.0,0.00030063,2]
[391188413,1760412642530,-152873.29644372,0.000301,3]
[391188414,1760412642540,-1507.642386,0.000301,4]
[391188415,1760412642550,-800.0,0.00030103,2]
[391188416,1760412642559,-800.0,0.00030114,2]
[391188417,1760412642568,-800.0,0.00030114,2]
[391188418,1760412642578,-519.622,0.0003012,120]
[391188419,1760412642591,-418.80544234,0.0003012,7]
[391188423,1760412643178,-3e-08,0.0003,30]
[391188424,1760412643189,-150.99999997,0.0003,30]
[391188425,1760412643199,-2333.22390183,0.0003012,7]
[391188426,1760412643212,-415.9075807,0.0003012,7]
[391188427,1760412643224,-696.29687885,0.0003012,7]
[391188429,1760412643235,-302.52126667,0.0003012,7]
[391188431,1760412643246,-38606.4512314,0.0003012,7]
[391188432,1760412643257,-9560.51748462,0.0003012,7]
[391188433,1760412643266,-800.0,0.00030122,2]
[391188434,1760412643275,-36.98051538,0.00030124,2]
[391188435,1760412643620,-763.01948462,0.00030124,2]
[391188436,1760412643629,-55.7398675,0.00030128,24]
[391188437,1760412643741,-1881.96379158,0.00030128,24]
[391188438,1760412643750,-889.66643717,0.00030136,2]
[391188439,1760412643759,-400.0,0.00030136,120]
[391188440,1760412643768,-8491.44,0.00030136,8]
[391188441,1760412643777,-800.0,0.00030153,2]
[391188442,1760412643785,-340.0,0.00030154,2]
[391188443,1760412643795,-600.0,0.00030163,2]
[391188444,1760412643804,-339.0,0.00030172,2]
[391188445,1760412643812,-256.42147587,0.00030174,2]
[391188446,1760412643821,-781.8963708,0.00030196,2]
[391188447,1760412643830,-800.0,0.00030198,2]
[391188449,1760412643842,-325.31446834,0.00030203,2]
[391188451,1760412643851,-800.0,0.0003021,2]
[391188453,1760412643861,-669.73508487,0.0003022,2]
[391188455,1760412643875,-800.0,0.0003022,2]
[391188458,1760412643884,-339.0,0.00030225,2]
[391188459,1760412643893,-2068.51,0.00030226,2]
[391188461,1760412643902,-800.0,0.00030254,2]
[391188462,1760412643912,-837.31433615,0.00030266,2]
[391188463,1760412643921,-400.0,0.00030273,120]
[391188464,1760412643930,-6698.5146892,0.00030275,2]
[391188465,1760412643943,-151.0,0.00030285,30]
[391188466,1760412643952,-151.0,0.00030285,30]
[391188467,1760412643960,-151.69239,0.00030285,30]
[391188468,1760412643969,-151.0,0.00030285,30]
[391188469,1760412643978,-151.0,0.00030285,30]
[391188470,1760412643987,-151.0,0.00030285,30]
[391188471,1760412643995,-151.0,0.00030285,30]
[391188472,1760412644005,-284.911422,0.00030285,30]
[391188473,1760412644014,-151.0,0.00030285,30]
[391188474,1760412644022,-232.5147,0.00030285,30]
[391188475,1760412644031,-222.699761,0.00030285,30]
[391188476,1760412644039,-151.90355,0.00030285,30]
[391188477,1760412644049,-222.699761,0.00030285,30]
[391188478,1760412644058,-151.0,0.00030285,30]
[391188479,1760412644168,-222.699761,0.00030285,30]
[391188480,1760412644179,-222.699761,0.00030285,30]
[391188481,1760412644188,-151.514616,0.00030285,30]
[391188482,1760412644198,-151.02838,0.00030285,30]
[391188483,1760412644207,-151.0,0.00030285,30]
[391188484,1760412644216,-151.0,0.00030285,30]
[391188485,1760412644225,-151.0,0.00030285,30]
[391188486,1760412644234,-484.807238,0.00030285,30]
[391188487,1760412644243,-484.807238,0.00030285,30]
[391188488,1760412644252,-484.807238,0.00030285,30]
[391188489,1760412644261,-484.807238,0.00030285,30]
[391188490,1760412644270,-151.0,0.00030285,30]
[391188491,1760412644279,-151.0,0.00030285,30]
[391188492,1760412644288,-151.0,0.00030285,30]
[391188493,1760412644296,-296.221287,0.00030285,30]
[391188494,1760412644305,-151.0,0.00030285,30]
[391188495,1760412644314,-151.0,0.00030285,30]
[391188496,1760412644323,-607.51640739,0.00030285,2]
[391188533,1760412646582,-1411.85,0.00021225,2]
[391188535,1760412646594,-24.89,0.00021225,2]
[391188537,1760412646604,-2873.47,0.00022235,2]
[391188539,1760412646614,-1178.62092114,0.00023246,2]
[391188798,1760412661720,10000.0,0.00020879,2]
[391188799,1760412664445,0.01,8.4e-07,2]
[391188800,1760412664466,163.99,8.4e-07,2]
[391188801,1760412665489,164.0,8.4e-07,2]
[391188802,1760412666741,304.0,0.00030585,60]
[391188803,1760412672744,10000.0,0.00020879,2]
[391188804,1760412683079,0.01,0.00020879,2]
[391188805,1760412683100,9999.99,0.00020879,2]
[391188806,1760412690188,0.02,0.00020879,2]
[391188807,1760412690210,9999.98,0.00020879,2]
[391188808,1760412698880,0.03,0.00020879,2]
[391188809,1760412698904,9999.97,0.00020879,2]
[391188814,1760412702365,0.04,0.00020364,2]
[391188815,1760412702387,180.64118654,0.00020364,2]
[391188816,1760412702980,500.0,0.00020364,2]
[391188817,1760412704767,501.27475594,0.00020364,2]
[391188818,1760412708059,500.0,0.00020364,2]
[391188819,1760412708702,500.0,0.00020364,2]
[391188820,1760412708980,500.0,0.00020364,2]
[391188821,1760412709220,500.0,0.00020364,2]
[391188822,1760412709447,500.0,0.00020364,2]
[391188823,1760412709679,500.0,0.00020364,2]
[391188824,1760412709908,500.0,0.00020364,2]
[391188825,1760412710127,500.0,0.00020364,2]
[391188826,1760412710388,500.0,0.00020364,2]
[391188827,1760412710604,500.0,0.00020364,2]
[391188828,1760412710864,500.0,0.00020364,2]
[391188829,1760412711101,500.0,0.00020364,2]
[391188830,1760412711379,500.0,0.00020364,2]
[391188831,1760412711681,500.0,0.00020364,2]
[391188832,1760412711908,500.0,0.00020364,2]
[391188833,1760412712156,500.0,0.00020364,2]
[391188834,1760412712385,500.0,0.00020364,2]
[391188835,1760412712616,310.97,0.00020364,2]
[391188836,1760412717424,500.0,0.00020364,2]
[391188837,1760412717649,500.0,0.00020364,2]
[391188838,1760412717889,500.0,0.00020364,2]
[391188839,1760412718107,500.0,0.00020364,2]
[391188840,1760412718280,500.0,0.00020364,2]
[391188841,1760412718308,500.0,0.00020364,2]
[391188842,1760412718338,500.0,0.00020364,2]
[391188843,1760412718566,500.0,0.00020364,2]
[391188844,1760412718592,500.0,0.00020364,2]
[391188845,1760412718687,500.0,0.00020364,2]
[391188846,1760412718819,500.0,0.00020364,2]
[391188847,1760412718905,500.0,0.00020364,2]
[391188848,1760412719004,495.46666317,0.00020364,2]
[391188849,1760412719069,151.0,0.000181,2]
[391188850,1760412719325,500.0,0.00020364,2]
[391188851,1760412719652,42.57333683,0.00020364,2]
[391188852,1760412719676,457.42666317,0.00020364,2]
[391188853,1760412719996,500.0,0.00020364,2]
[391188854,1760412720060,151.0,0.00018126,2]
[391188855,1760412720313,500.0,0.00020364,2]
[391188856,1760412720670,500.0,0.00020364,2]
[391188857,1760412720972,500.0,0.00020364,2]
[391188858,1760412721196,151.0,0.00018152,2]
[391188859,1760412721270,500.0,0.00020364,2]
[391188860,1760412721856,253.50629561,0.00020364,2]
[391188861,1760412722178,151.0,0.00018178,2]
[391188862,1760412722204,500.0,0.00020364,2]
[391188863,1760412722428,500.0,0.00020364,2]
[391188864,1760412722651,2979.7,0.00020936,2]
[391188865,1760412722684,500.0,0.00020364,2]
[391188866,1760412722816,500.0,0.00020364,2]
[391188867,1760412723033,500.0,0.00020364,2]
[391188868,1760412723072,500.0,0.00020364,2]
[391188869,1760412723174,151.0,0.00018205,2]
[391188870,1760412723276,500.0,0.00020364,2]
[391188871,1760412723368,500.0,0.00020364,2]
[391188872,1760412723538,500.0,0.00020364,2]
[391188873,1760412723606,500.0,0.00020364,2]
[391188874,1760412723949,500.0,0.00020364,2]
[391188875,1760412723984,230.74,0.00020364,2]
[391188876,1760412724026,500.0,0.00020364,2]
[391188877,1760412724151,151.0,0.00018231,2]
[391188878,1760412724288,83.06370439,0.00020364,2]
[391188879,1760412724310,416.93629561,0.00020364,2]
[391188880,1760412724896,500.0,0.00020364,2]
[391188881,1760412725146,151.0,0.00018257,2]
[391188882,1760412725176,500.0,0.00020364,2]
[391188883,1760412725422,500.0,0.00020364,2]
[391188884,1760412725643,500.0,0.00020364,2]
[391188885,1760412725876,500.0,0.00020364,2]
[391188886,1760412725907,500.0,0.00020364,2]
[391188887,1760412726133,151.0,0.00018284,2]
[391188888,1760412726162,323.7772,0.00020364,2]
[391188889,1760412726187,500.0,0.00020364,2]
[391188890,1760412726397,500.0,0.00020364,2]
[391188891,1760412726655,500.0,0.00020364,2]
[391188892,1760412726895,500.0,0.00020364,2]
[391188893,1760412727110,151.0,0.0001831,2]
[391188894,1760412727138,500.0,0.00020364,2]
[391188895,1760412727362,500.0,0.00020364,2]
[391188896,1760412727591,500.0,0.00020364,2]
[391188897,1760412727823,500.0,0.00020364,2]
[391188898,1760412728087,500.0,0.00020364,2]
[391188899,1760412728120,151.0,0.00018336,2]
[391188900,1760412728372,500.0,0.00020364,2]
[391188901,1760412728654,544.27,0.00020364,2]
[391188902,1760412729134,151.0,0.00018363,2]
[391188903,1760412730148,151.0,0.00018389,2]
[391188904,1760412731153,151.0,0.00018415,2]
[391188905,1760412732143,151.0,0.00018442,2]
[391188906,1760412733138,151.0,0.00018468,2]
[391188907,1760412734168,151.0,0.00018494,2]
[391188908,1760412734342,500.0,0.00020364,2]
[391188909,1760412734421,500.0,0.00020364,2]
[391188910,1760412734593,500.0,0.00020364,2]
[391188911,1760412734690,500.0,0.00020364,2]
[391188912,1760412734857,500.0,0.00020364,2]
[391188913,1760412734948,183.84,0.00020364,2]
[391188914,1760412735094,423.92873627,0.00020364,2]
[391188915,1760412735131,151.0,0.00018521,2]
[391188916,1760412736128,151.0,0.00018547,2]
[391188917,1760412737116,151.0,0.00018573,2]
[391188918,1760412737142,500.0,0.00020364,2]
[391188919,1760412738225,500.0,0.00020364,2]
[391188920,1760412738278,500.0,0.00020364,2]
[391188921,1760412738329,499.99999999,0.00020364,2]
[391188922,1760412738421,151.0,0.000186,2]
[391188923,1760412739415,151.0,0.00018626,2]
[391188924,1760412740399,151.0,0.00018652,2]
[391188925,1760412741402,151.0,0.00018678,2]
[391188926,1760412742459,151.0,0.00018705,2]
[391188927,1760412743464,151.0,0.00018731,2]
[391188928,1760412744497,151.0,0.00018757,2]
[391188929,1760412745485,151.0,0.00018784,2]
[391188930,1760412746496,151.0,0.0001881,2]
[391188931,1760412746522,500.0,0.00020364,2]
[391188932,1760412746787,500.0,0.00020364,2]
[391188933,1760412747163,500.0,0.00020364,2]
[391188934,1760412747240,500.0,0.00020364,2]
[391188935,1760412747485,500.0,0.00020364,2]
[391188936,1760412747554,151.0,0.00018836,2]
[391188937,1760412747800,500.0,0.00020364,2]
[391188938,1760412748046,500.0,0.00020364,2]
[391188939,1760412748270,500.0,0.00020364,2]
[391188940,1760412748534,574.61,0.00020364,2]
[391188941,1760412748565,151.0,0.00018863,2]
[391188942,1760412749536,151.0,0.00018889,2]
[391188943,1760412749710,500.0,0.00020464,2]
[391188944,1760412750579,151.0,0.00018915,2]
[391188945,1760412750726,1741.4,0.00020364,2]
[391188946,1760412750968,1523.0,0.00020364,2]
[391188947,1760412750991,218.4,0.00020364,2]
[391188948,1760412751208,1741.4,0.00020364,2]
[391188949,1760412751444,1741.4,0.00020364,2]
[391188950,1760412751550,151.0,0.00018942,2]
[391188951,1760412751682,1741.4,0.00020364,2]
[391188952,1760412751991,1741.4,0.00020364,2]
[391188953,1760412752234,1741.4,0.00020364,2]
[391188954,1760412752483,1741.4,0.00020364,2]
[391188955,1760412752538,151.0,0.00018968,2]
[391188956,1760412752727,1741.4,0.00020364,2]
[391188957,1760412752979,1741.4,0.00020364,2]
[391188958,1760412753232,1142.01,0.00020364,2]
[391188959,1760412753258,599.39,0.00020364,2]
[391188960,1760412753521,1741.4,0.00020364,2]
[391188961,1760412753549,151.0,0.00018994,2]
[391188962,1760412753806,1741.4,0.00020364,2]
[391188963,1760412754048,1741.4,0.00020364,2]
[391188964,1760412754295,1741.4,0.00020364,2]
[391188965,1760412754586,151.0,0.00019021,2]
[391188966,1760412754613,1741.4,0.00020364,2]
[391188967,1760412754901,391.62,0.00020364,2]
[391188968,1760412754927,1349.78,0.00020364,2]
[391188969,1760412755076,8650.23,0.00020265,2]
[391188970,1760412755096,10000.01,0.00020265,2]
[391188971,1760412755119,10000.01,0.00020265,2]
[391188972,1760412755140,10000.01,0.00020265,2]
[391188973,1760412755162,10000.01,0.00020265,2]
[391188974,1760412755184,10000.01,0.00020265,2]
[391188975,1760412755206,10000.01,0.00020265,2]
[391188976,1760412755565,151.0,0.00019047,2]
[391188977,1760412756260,-344.09062186,0.00020265,2]
[391188978,1760412756582,151.0,0.00019073,2]
[391188979,1760412757590,151.0,0.000191,2]
[391188980,1760412758939,-277.22444406,0.00020265,2]
[391188981,1760412761099,-236.28184371,0.00020265,2]
[391188982,1760412778468,218.44723072,0.00020264,2]
[391188983,1760412782272,300.0,0.00020264,2]
[391188985,1760412842361,300.0,0.00020264,2]
[391188986,1760412845493,5000.0,0.00020265,2]
[391188987,1760412852030,-268.38059175,0.00020265,2]
[391188988,1760412856348,-180.54889743,0.00020265,2]
[391188989,1760412867940,4181.56276928,0.00020265,2]
[391188990,1760412867965,818.43723072,0.00020265,2]
[391188991,1760412873853,220.32167012,0.00020264,2]
[391188992,1760412873880,500.0,0.00020264,2]
[391188993,1760412873906,412.38817164,0.00020264,2]
[391188994,1760412873938,500.0,0.00020264,2]
[391188995,1760412873969,500.0,0.00020264,2]
[391188996,1760412873999,500.0,0.00020264,2]
[391188997,1760412874026,548.20808819,0.00020264,2]
[391188998,1760412874053,222.30516571,0.00020264,2]
[391188999,1760412874081,500.0,0.00020264,2]
[391189000,1760412874107,450.0,0.00020264,2]
[391189001,1760412874133,500.0,0.00020264,2]
[391189002,1760412874166,500.0,0.00020264,2]
[391189003,1760412874344,500.0,0.00020264,2]
[391189004,1760412874372,200.0,0.00020264,2]
[391189005,1760412874406,500.0,0.00020264,2]
[391189006,1760412877106,448.92948918,0.00020265,2]
[391189007,1760412890506,1443.08,0.00019724,2]
[391189008,1760412892956,5000.0,0.00020265,2]
[391189009,1760412900631,3556.93,0.0002,3]
[391189010,1760412900654,1443.07,0.0002,3]
[391189011,1760412902457,300.0,0.00020264,2]
[391189012,1760412902506,300.0,0.00020264,2]
[391189013,1760412903484,1200.0,0.00020264,2]
[391189014,1760412915414,443.81795504,0.00020265,2]
[391189015,1760412923289,5000.0,0.00020265,2]
[391189016,1760412958019,-207.5115172,0.00020265,2]
[391189017,1760412961611,-174.29460539,0.00020265,2]
[391189018,1760412963059,300.0,0.00020264,2]
[391189019,1760412964093,-330.76143456,0.00020265,2]
[391189020,1760412966154,-401.6602853,0.00020265,2]
[391189021,1760412968098,712.56755715,0.00020265,2]
[391189022,1760412969407,-294.76986674,0.00020265,2]
[391189023,1760412971064,300.55448781,0.00019709,2]
[391189024,1760412971087,1198.28551219,0.00019709,2]
[391189025,1760412974003,-159.28547763,0.00020265,2]
[391189026,1760412975973,-207.65095335,0.00020265,2]
[391189027,1760412978649,-239.16009592,0.00020265,2]
[391189028,1760412980142,-300.0,0.00020265,2]
[391189029,1760412982257,-201.55442645,0.00020265,2]
[391189030,1760412991487,696.43015204,0.00020265,2]
[391189031,1760412993781,618.57028921,0.00020264,2]
[391189032,1760413002616,-235.26310056,0.00020265,2]
[391189033,1760413010118,569.97,0.00020264,2]
[391189034,1760413010295,569.97,0.00020264,2]
[391189035,1760413010559,569.97,0.00020264,2]
[391189036,1760413010842,569.97,0.00020264,2]
[391189037,1760413010957,344.47694348,0.00020264,2]
[391189038,1760413011119,569.97,0.00020264,2]
[391189039,1760413011435,569.97,0.00020264,2]
[391189040,1760413011809,569.97,0.00020264,2]
[391189041,1760413011954,569.97,0.00020264,2]
[391189042,1760413012266,569.97,0.00020264,2]
[391189043,1760413012501,569.97,0.00020264,2]
[391189044,1760413012877,569.97,0.00020264,2]
[391189045,1760413012980,569.97,0.00020264,2]
[391189046,1760413013260,569.97,0.00020264,2]
[391189047,1760413013580,569.97,0.00020264,2]
[391189048,1760413015261,-569.97,0.00020264,2]
[391189049,1760413015288,-569.97,0.00020264,2]
[391189050,1760413015315,-569.97,0.00020264,2]
[391189051,1760413015343,-569.97,0.00020264,2]
[391189052,1760413015370,-569.97,0.00020264,2]
[391189053,1760413015398,-569.97,0.00020264,2]
[391189054,1760413015658,-569.97,0.00020264,2]
[391189055,1760413015881,-569.97,0.00020264,2]
[391189056,1760413016358,-569.97,0.00020264,2]
[391189057,1760413019348,-570.20538005,0.00020264,2]
[391189058,1760413021519,-7547.01000001,0.00020265,2]
[391189059,1760413021598,-10000.01,0.00020265,2]
[391189060,1760413021744,-10000.01,0.00020265,2]
[391189061,1760413021921,-10000.01,0.00020265,2]
[391189062,1760413022101,-10000.01,0.00020265,2]
[391189063,1760413022266,-10000.01,0.00020265,2]
[391189064,1760413022424,-300.0,0.00020264,2]
[391189065,1760413022458,-9400.01,0.00020265,2]
[391189066,1760413022575,-10000.01,0.00020265,2]
[391189067,1760413022689,-10000.01,0.00020265,2]
[391189068,1760413028528,5000.0,0.00020265,2]
[391189069,1760413046134,500.0,0.00020264,2]
[391189070,1760413046377,497.43670998,0.00020264,2]
[391189071,1760413051318,1558.74,0.00019682,2]
[391189072,1760413054043,507.62013432,0.00020264,2]
[391189073,1760413058124,1936.2131557,0.00020265,2]
[391189074,1760413058147,3063.7868443,0.00020265,2]
[391189075,1760413067043,500.0,0.00020264,2]